[Event "GER-chT States Women 2022"]
[Site "Braunfels"]
[Date "2022.06.17"]
[Round "2.15"]
[White "Schilay, Eva"]
[Black "Noppes, Marina"]
[Result "0-1"]
[ECO "B26"]
[WhiteElo "1691"]
[BlackElo "1922"]
[Annotator "NA RC"]
[PlyCount "62"]
[EventDate "2022.06.15"]
[EventType "swiss"]
[EventCountry "GER"]
[SourceTitle "playchess.com"]
[Source "ChessBase"]
[SourceQuality "1"]
[TimeControl "40/5400+30:1800+30"]

1. e4 {[%emt 0:00:04]} c5 {[%emt 0:00:18]} 2. g3 {[%emt 0:00:52]} Nc6 {[%emt 0:01:06]} 3. Bg2 {[%emt 0:00:41]} g6 {[%emt 0:02:26]} 4. d3 {[%emt 0:02:59]} Bg7 {[%emt 0:00:15]} 5. Nc3 {[%emt 0:00:09]} d6 {[%emt 0:00:25]} 6. Be3 {[%emt 0:00:54]} e6 {[%emt 0:01:39]} 7. Qd2 {[%emt 0:01:24]} Rb8 {[%emt 0:00:19]} 8. Nge2 {[%emt 0:09:36]} Qb6 {[%emt 0:08:00]} 9. Rb1 {[%emt 0:05:34]} Nd4 {[%emt 0:06:28]} 10. Nd1 {[%emt 0:14:08]} Nxe2 {[%emt 0:03:27]} 11. Kxe2 {[%emt 0:01:05]} Qa6 {[%emt 0:03:08]} 12. a3 {[%emt 0:05:32]} h5 {[%emt 0:04:08]} 13. h3 {[%emt 0:03:46]} Ne7 {[%emt 0:08:27]} 14. Re1 {[%emt 0:06:43]} b5 {[%emt 0:12:30]} 15. c3 {[%emt 0:03:11]} Bd7 {[%emt 0:11:48]} 16. Qc1 {[%emt 0:04:43]} Rc8 {[%emt 0:06:53]} 17. Bd2 {[%emt 0:06:15]} Nc6 {[%emt 0:01:52]} 18. Ne3 {[%emt 0:01:25]} O-O {[%emt 0:09:40]} 19. Bf3 {[%emt 0:08:50]} b4 {[%emt 0:01:27]} 20. axb4 {[%emt 0:01:18] [#]} ({Not} 20. Nc4 $2 d5 21. exd5 exd5 22. Bxd5 Bf5 $19) 20... cxb4 {[%emt 0:03:04]} (20... Ne5 $1 $17 {[%cal Re5d3]} 21. c4 cxb4) 21. Nc4 {[%emt 0:05:09]} d5 $15 {[%emt 0:02:50]} 22. exd5 {[%emt 0:02:05]} exd5 {[%emt 0:00:01]} 23. Bxd5 {[%emt 0:05:40]} Bxh3 {[%emt 0:00:08]} 24. Be3 {[%emt 0:06:28]} Rfd8 {[%emt 0:01:11]} 25. Be4 {[%emt 0:00:44]} f5 {[%emt 0:00:32]} 26. Bf3 {[%emt 0:00:09]} Rxd3 {[%emt 0:01:31]} 27. Kxd3 {[%emt 0:02:54]} Ne5+ {[%emt 0:00:01]} 28. Kc2 {[%emt 0:00:14]} b3+ {[%emt 0:01:15]} 29. Kd2 {[%emt 0:01:14]} Nxf3+ {[%emt 0:01:51]} 30. Ke2 {[%emt 0:00:58]} Qxc4+ {[%emt 0:00:09]} 31. Kxf3 {[%emt 0:00:03]} Qg4# {[%emt 0:00:07]} 0-1

[Event "GER-chT States Women 2022"]
[Site "Braunfels"]
[Date "2022.06.17"]
[Round "2.16"]
[White "Brender, Biserka"]
[Black "Schaefer, Ann-Kathrin"]
[Result "0-1"]
[ECO "E91"]
[WhiteElo "1427"]
[BlackElo "1680"]
[Annotator "NA RC"]
[PlyCount "60"]
[EventDate "2022.06.15"]
[EventType "swiss"]
[EventCountry "GER"]
[SourceTitle "playchess.com"]
[Source "ChessBase"]
[SourceQuality "1"]
[TimeControl "40/5400+30:1800+30"]

1. d4 {[%emt 0:00:02]} Nf6 {[%emt 0:00:06]} 2. Nf3 {[%emt 0:00:29]} d6 {[%emt 0:00:25]} 3. c4 {[%emt 0:07:50]} g6 {[%emt 0:00:12]} 4. Nc3 {[%emt 0:00:34]} Bg7 {[%emt 0:00:26]} 5. e4 {[%emt 0:02:24]} O-O {[%emt 0:02:39]} 6. Be2 {[%emt 0:01:07]} Nbd7 {[%emt 0:04:59]} 7. O-O {[%emt 0:01:57]} c5 {[%emt 0:02:32]} 8. Bg5 {[%emt 0:07:39]} cxd4 {[%emt 0:05:31]} 9. Nxd4 {[%emt 0:00:25]} Nc5 {[%emt 0:05:42]} 10. Bxf6 {[%emt 0:03:42]} Bxf6 {[%emt 0:00:39]} 11. b4 {[%emt 0:00:27]} Ne6 {[%emt 0:01:52]} 12. Nxe6 {[%emt 0:03:39]} Bxe6 {[%emt 0:00:19]} 13. Rc1 {[%emt 0:00:17]} Rc8 {[%emt 0:02:32]} 14. Nd5 {[%emt 0:00:31]} Bxd5 {[%emt 0:01:21]} 15. Qxd5 {[%emt 0:01:38]} Qb6 {[%emt 0:03:38]} 16. Rb1 {[%emt 0:11:27]} Rc6 {[%emt 0:10:11]} 17. a4 {[%emt 0:06:50]} Rfc8 {[%emt 0:07:12]} 18. a5 {[%emt 0:01:26]} Qc7 {[%emt 0:04:59]} 19. Rfc1 {[%emt 0:11:51]} e6 {[%emt 0:09:52]} 20. Qd3 {[%emt 0:09:35]} b5 {[%emt 0:05:02]} 21. axb6 {[%emt 0:01:11]} axb6 {[%emt 0:00:50]} 22. f4 {[%emt 0:03:54]} b5 {[%emt 0:12:40]} 23. g4 {[%emt 0:06:37]} bxc4 {[%emt 0:01:48]} 24. Qh3 {[%emt 0:10:49]} Qa7+ {[%emt 0:03:05]} 25. Kg2 {[%emt 0:00:33]} Qa2 {[%emt 0:01:11]} 26. Kf1 {[%emt 0:02:48]} Bb2 {[%emt 0:01:35]} 27. Rd1 {[%emt 0:00:28]} c3 {[%emt 0:00:45]} 28. Bd3 {[%emt 0:02:42]} c2 {[%emt 0:01:03]} 29. Bxc2 {[%emt 0:00:28]} Rxc2 {[%emt 0:00:07]} 30. b5 {[%emt 0:01:02]} Bd4 {[%emt 0:02:16]} 0-1

[Event "GER-chT States Women 2022"]
[Site "Braunfels"]
[Date "2022.06.17"]
[Round "2.17"]
[White "Steinbacher, Claudia"]
[Black "Hund, Sarah"]
[Result "1/2-1/2"]
[ECO "E16"]
[WhiteElo "2020"]
[BlackElo "2086"]
[Annotator "TA"]
[PlyCount "73"]
[EventDate "2022.06.15"]
[EventType "swiss"]
[EventCountry "GER"]
[SourceTitle "playchess.com"]
[Source "ChessBase"]
[SourceQuality "1"]
[TimeControl "40/5400+30:1800+30"]

{[%evp 12,73,23,14,21,-15,0,0,0,0,0,-7,0,0,14,12,19,-49,-43,-64,-70,-57,-70,-72,0,0,0,0,0,0,36,0,0,0,0,0,0,-8,0,-21,10,-4,20,-30,-27,-36,0,0,0,0,60,43,43,43,43,43,43,43,43,43,43,0,0,0]} 1. d4 {[%emt 0:00:03]} Nf6 {[%emt 0:00:06]} 2. c4 {[%emt 0:00:01]} e6 {[%emt 0:00:10]} 3. Nf3 {[%emt 0:00:14]} Bb4+ {[%emt 0:00:22]} 4. Bd2 {[%emt 0:00:15]} Qe7 {[%emt 0:00:22]} 5. a3 {[%emt 0:00:50]} Bxd2+ {[%emt 0:00:29]} 6. Qxd2 {[%emt 0:00:02]} d6 {[%emt 0:00:57]} 7. Nc3 {[%emt 0:00:17]} e5 {[%emt 0:01:10] E11: Bogo-Indian.} 8. d5 {[%emt 0:06:00]} a5 {[%emt 0:04:22]} 9. e4 {[%emt 0:05:55]} O-O {[%emt 0:01:18]} 10. Bd3 {[%emt 0:00:56]} Nbd7 {[%emt 0:01:53]} 11. Bc2 {[%emt 0:07:56]} Nc5 {[%emt 0:02:53]} 12. b3 {[%emt 0:02:03]} Bg4 {[%emt 0:05:07]} 13. Qe3 {[%emt 0:05:34] [#]} Nh5 $146 {[%emt 0:02:52]} ({Predecessor:} 13... c6 14. O-O Rfc8 15. Rfc1 cxd5 16. cxd5 Bxf3 17. Qxf3 Qd8 18. Rab1 g6 19. h3 Kg7 {0-1 (60) Loupos,V (2032)-Gogolis,A (2264) Athens 2013}) 14. Ne2 {[%emt 0:02:52]} ({White should try} 14. O-O $11) 14... Qf6 $15 {[%emt 0:02:49]} 15. O-O {[%emt 0:13:55]} Bxf3 {[%emt 0:07:42]} 16. Qxf3 {[%emt 0:01:16]} Qxf3 {[%emt 0:00:31]} 17. gxf3 {[%emt 0:00:01]} b6 {[%emt 0:01:20]} (17... Nf4 $17 18. Nxf4 exf4) 18. b4 $11 {[%emt 0:04:55]} Nb7 {[%emt 0:02:13]} 19. Ba4 {[%emt 0:00:37][%cal Bc2a4,Ba4d7,Bd7g4][%mdl 32]} Nd8 {[%emt 0:03:42]} 20. Bd7 {[%emt 0:01:18]} f6 {[%emt 0:03:05]} 21. Bg4 {[%emt 0:00:37]} Nf4 {[%emt 0:01:00]} 22. Nxf4 {[%emt 0:01:16]} exf4 {[%emt 0:00:06]} 23. Rfc1 {[%emt 0:00:32]} Nb7 {[%emt 0:05:46] Prevents c5.} 24. Bd7 {[%emt 0:00:48]} Ra7 {[%emt 0:02:03]} 25. Bc6 {[%emt 0:03:36]} Kf7 {[%emt 0:02:02]} 26. Kf1 {[%emt 0:02:30]} Ke7 {[%emt 0:01:58]} 27. Ke2 {[%emt 0:00:03]} (27. Bxb7 $142 Rxb7 28. h4) 27... Rb8 {[%emt 0:02:35]} 28. Rg1 {[%emt 0:02:11]} g6 {[%emt 0:01:50]} 29. Bxb7 {[%emt 0:02:18]} Rbxb7 {[%emt 0:01:03][%mdl 4096] Endgame KRR-KRR} 30. b5 {[%emt 0:00:03]} Rb8 {[%emt 0:01:08]} ({Better is} 30... Kf7 $1 $11) 31. Rg4 {[%emt 0:00:14]} g5 $1 {[%emt 0:02:01]} 32. h4 {[%emt 0:03:24]} h6 {[%emt 0:01:05]} 33. hxg5 {[%emt 0:01:15]} hxg5 {[%emt 0:01:27]} 34. Rh1 {[%emt 0:00:04] [#] Rh7+ is the strong threat.} Rf8 $1 {[%emt 0:00:39]} 35. Rh7+ {[%emt 0:02:12]} Rf7 {[%emt 0:00:32]} 36. Rh8 {[%emt 0:00:08] Threatens to win with Rg2.} Rf8 {[%emt 0:00:17]} 37. Rh7+ {[%emt 0:00:05] Weighted Error Value: White=0.12 (very precise) /Black=0.11 (very precise)} 1/2-1/2

[Event "GER-chT States Women 2022"]
[Site "Braunfels"]
[Date "2022.06.17"]
[Round "2.18"]
[White "Frey, Alisa"]
[Black "Peglau, Dora"]
[Result "1-0"]
[ECO "B17"]
[WhiteElo "1998"]
[BlackElo "2008"]
[Annotator "NA RC"]
[PlyCount "85"]
[EventDate "2022.06.15"]
[EventType "swiss"]
[EventCountry "GER"]
[SourceTitle "playchess.com"]
[Source "ChessBase"]
[SourceQuality "1"]
[TimeControl "40/5400+30:1800+30"]

1. e4 {[%emt 0:00:03]} c6 {[%emt 0:00:00]} 2. d4 {[%emt 0:00:05]} d5 {[%emt 0:00:00]} 3. Nc3 {[%emt 0:00:05]} dxe4 {[%emt 0:00:00]} 4. Nxe4 {[%emt 0:00:04]} Nd7 {[%emt 0:00:01]} 5. Bc4 {[%emt 0:00:36]} Ngf6 {[%emt 0:01:16]} 6. Ng5 {[%emt 0:00:34]} e6 {[%emt 0:01:38]} 7. Qe2 {[%emt 0:07:24]} Nb6 {[%emt 0:02:48]} 8. Bb3 {[%emt 0:00:45]} Bd6 {[%emt 0:04:42]} 9. N1f3 {[%emt 0:04:10]} h6 {[%emt 0:02:15]} 10. Ne4 {[%emt 0:00:14]} Nxe4 {[%emt 0:00:15]} 11. Qxe4 {[%emt 0:00:07]} Nd5 {[%emt 0:01:18]} 12. O-O {[%emt 0:04:05]} Nf6 {[%emt 0:02:42]} 13. Qe2 {[%emt 0:01:13]} O-O {[%emt 0:00:38]} 14. c4 {[%emt 0:06:51]} b6 {[%emt 0:01:39]} 15. Be3 {[%emt 0:07:38]} Qe7 {[%emt 0:03:20]} 16. Rad1 {[%emt 0:03:21]} Bb7 {[%emt 0:02:51]} 17. Bc2 {[%emt 0:02:56]} c5 {[%emt 0:03:28]} 18. Ne5 {[%emt 0:05:24]} cxd4 {[%emt 0:03:20]} 19. Bxd4 {[%emt 0:00:14]} Rac8 $11 {[%emt 0:04:35]} 20. b3 {[%emt 0:13:35]} Rfd8 {[%emt 0:04:49]} 21. Ng4 {[%emt 0:16:26]} Nxg4 {[%emt 0:05:31]} 22. Qxg4 {[%emt 0:00:10]} Qg5 {[%emt 0:01:22]} 23. Qxg5 {[%emt 0:00:08]} hxg5 {[%emt 0:00:05]} 24. Be3 {[%emt 0:01:17]} Bf4 {[%emt 0:03:02]} 25. Rxd8+ {[%emt 0:04:56]} Rxd8 {[%emt 0:00:02]} 26. Rd1 {[%emt 0:00:12]} Rxd1+ {[%emt 0:00:15]} 27. Bxd1 {[%emt 0:00:05]} Bxe3 {[%emt 0:00:48]} 28. fxe3 {[%emt 0:00:07]} Kf8 {[%emt 0:00:15]} 29. Bf3 {[%emt 0:01:56]} Bxf3 {[%emt 0:01:16]} 30. gxf3 {[%emt 0:00:07]} Ke7 {[%emt 0:00:11]} 31. Kf2 {[%emt 0:00:17]} Kd6 {[%emt 0:00:31]} 32. b4 {[%emt 0:01:45]} f5 {[%emt 0:02:52]} 33. Ke2 {[%emt 0:07:43]} Ke5 {[%emt 0:15:26]} 34. Kd3 {[%emt 0:03:04]} f4 {[%emt 0:13:47]} 35. e4 {[%emt 0:03:23]} a6 {[%emt 0:08:21]} 36. c5 {[%emt 0:02:55]} bxc5 {[%emt 0:03:17]} 37. bxc5 {[%emt 0:00:06]} Kf6 {[%emt 0:09:38]} 38. h3 {[%emt 0:00:39]} e5 {[%emt 0:00:33]} 39. Kc4 {[%emt 0:00:10]} Ke6 {[%emt 0:00:06]} 40. a3 {[%emt 0:00:09]} g6 {[%emt 0:00:17]} 41. a4 {[%emt 0:30:50]} g4 {[%emt 0:04:11]} 42. hxg4 {[%emt 0:00:00]} g5 {[%emt 0:00:04]} 43. a5 {[%emt 0:00:00]} 1-0

[Event "GER-chT States Women 2022"]
[Site "Braunfels"]
[Date "2022.06.17"]
[Round "2.19"]
[White "Peglau, Mirjam"]
[Black "Kuehnel, Lena"]
[Result "1-0"]
[ECO "D02"]
[WhiteElo "1834"]
[BlackElo "1928"]
[Annotator "NA RC"]
[PlyCount "111"]
[EventDate "2022.06.15"]
[EventType "swiss"]
[EventCountry "GER"]
[SourceTitle "playchess.com"]
[Source "ChessBase"]
[SourceQuality "1"]
[TimeControl "40/5400+30:1800+30"]

1. d4 {[%emt 0:00:01]} d5 {[%emt 0:00:07]} 2. Nf3 {[%emt 0:00:07]} Nf6 {[%emt 0:00:06]} 3. Bf4 {[%emt 0:00:05]} e6 {[%emt 0:00:51]} 4. e3 {[%emt 0:00:39]} c5 {[%emt 0:01:58]} 5. c3 {[%emt 0:01:58]} Nc6 {[%emt 0:01:42]} 6. Nbd2 {[%emt 0:00:33]} Be7 {[%emt 0:05:12]} 7. Be2 {[%emt 0:00:47]} O-O {[%emt 0:01:11]} 8. O-O {[%emt 0:00:03] The main line 8.0-0 scores better than 8.h3.} Nh5 {[%emt 0:08:55]} 9. Bg3 {[%emt 0:00:02]} Nxg3 {[%emt 0:00:14]} 10. hxg3 {[%emt 0:00:01]} b6 {[%emt 0:10:05]} 11. Qa4 {[%emt 0:06:39] [#]} Bb7 $146 {[%emt 0:03:54]} ({Predecessor:} 11... Bd7 12. Qc2 Rc8 13. Rad1 Bf6 14. dxc5 bxc5 15. e4 d4 16. Nc4 e5 17. Ne1 Na5 {0-1 (50) Gerencer,J (2131)-Domonkos,D (2075) Hungary 2009}) 12. Rab1 {[%emt 0:02:49]} f6 {[%emt 0:04:24]} 13. b4 {[%emt 0:05:21]} c4 {[%emt 0:08:26]} 14. b5 {[%emt 0:04:25]} Nb8 {[%emt 0:00:52]} 15. Qc2 {[%emt 0:00:36]} a6 {[%emt 0:07:47]} 16. bxa6 {[%emt 0:02:00]} Rxa6 {[%emt 0:02:20]} 17. e4 {[%emt 0:01:09]} Nd7 {[%emt 0:05:28]} 18. exd5 {[%emt 0:06:22]} exd5 {[%emt 0:00:12]} 19. Rfe1 {[%emt 0:00:49]} f5 {[%emt 0:13:16]} 20. Bf1 {[%emt 0:17:29]} Nf6 {[%emt 0:06:08]} 21. Qxf5 {[%emt 0:06:15]} Ne4 {[%emt 0:02:04]} 22. Qe6+ {[%emt 0:02:18]} Kh8 {[%emt 0:00:01]} 23. Nxe4 {[%emt 0:02:26]} dxe4 {[%emt 0:00:23]} 24. Ne5 $18 {[%emt 0:02:32]} (24. Bxc4 b5 25. Qe5 Ra7 26. Rxb5 Bd6 27. Rxb7 Bxe5 28. Rxa7 Bb8) 24... Bd5 {[%emt 0:07:26]} 25. Qh3 {[%emt 0:01:09]} Rxa2 {[%emt 0:04:29]} 26. Ng6+ {[%emt 0:01:42]} Kg8 {[%emt 0:00:01]} 27. Nxf8 {[%emt 0:00:01]} Bxf8 {[%emt 0:01:00]} 28. Rb5 {[%emt 0:20:15]} Qf6 {[%emt 0:03:23]} 29. Re2 {[%emt 0:02:03]} Rxe2 {[%emt 0:00:52]} 30. Bxe2 {[%emt 0:00:01]} Qc6 {[%emt 0:00:33]} 31. Rb1 {[%emt 0:01:20]} Be7 {[%emt 0:01:12]} 32. Bg4 {[%emt 0:03:12]} Bd8 {[%emt 0:00:47]} 33. Bd7 {[%emt 0:01:14]} Qd6 {[%emt 0:00:15]} 34. Bb5 {[%emt 0:01:44]} Be6 {[%emt 0:00:17]} 35. Qh5 {[%emt 0:00:11]} Bf7 {[%emt 0:01:03]} 36. Qf5 {[%emt 0:02:08]} e3 {[%emt 0:00:28]} 37. Qf4 {[%emt 0:03:00]} exf2+ {[%emt 0:00:12]} 38. Qxf2 {[%emt 0:00:22]} Qg6 {[%emt 0:00:10]} 39. Rf1 {[%emt 0:00:42]} h6 {[%emt 0:01:12]} 40. Qf3 {[%emt 0:04:20]} Bc7 {[%emt 0:00:52]} 41. d5 {[%emt 0:21:00]} Bxg3 {[%emt 0:04:20]} 42. Bxc4 {[%emt 0:00:02]} Bd6 {[%emt 0:04:16]} 43. Bd3 {[%emt 0:01:41]} Bc5+ {[%emt 0:02:11]} 44. Kh1 {[%emt 0:00:00]} Qh5+ {[%emt 0:00:23]} 45. Qxh5 {[%emt 0:00:02]} Bxh5 {[%emt 0:00:00]} 46. c4 {[%emt 0:00:15]} Bf7 {[%emt 0:00:18]} 47. Bh7+ {[%emt 0:00:20]} Kxh7 {[%emt 0:00:24]} 48. Rxf7 {[%emt 0:00:01]} Kg6 {[%emt 0:00:07]} 49. Rb7 {[%emt 0:00:35]} Kf6 {[%emt 0:00:42]} 50. Rc7 {[%emt 0:00:59]} Bd4 {[%emt 0:03:00]} 51. Rc6+ {[%emt 0:02:11]} Ke7 {[%emt 0:00:29]} 52. g4 {[%emt 0:00:23]} Kd7 {[%emt 0:00:27]} 53. Kg2 {[%emt 0:00:18]} Ke7 {[%emt 0:00:17]} 54. Kf3 {[%emt 0:00:06]} Kf7 {[%emt 0:00:16]} 55. Ke4 {[%emt 0:00:14]} Bc5 {[%emt 0:00:22]} 56. Kf5 {[%emt 0:00:10]} 1-0

[Event "GER-chT States Women 2022"]
[Site "Braunfels"]
[Date "2022.06.17"]
[Round "2.20"]
[White "Kohm, Vanessa"]
[Black "Just, Anita"]
[Result "0-1"]
[ECO "A90"]
[WhiteElo "1772"]
[BlackElo "1895"]
[Annotator "NA RC"]
[PlyCount "166"]
[EventDate "2022.06.15"]
[EventType "swiss"]
[EventCountry "GER"]
[SourceTitle "playchess.com"]
[Source "ChessBase"]
[SourceQuality "1"]
[TimeControl "40/5400+30:1800+30"]

1. d4 {[%emt 0:00:03]} e6 {[%emt 0:00:06]} 2. c4 {[%emt 0:00:09]} f5 {[%emt 0:00:04]} 3. g3 {[%emt 0:00:20]} Nf6 {[%emt 0:00:07]} 4. Bg2 {[%emt 0:00:31]} Bb4+ {[%emt 0:00:19]} 5. Nd2 {[%emt 0:00:27]} O-O {[%emt 0:00:37]} 6. Ngf3 {[%emt 0:03:40]} d6 {[%emt 0:00:58]} 7. O-O {[%emt 0:07:03]} Bxd2 {[%emt 0:00:52]} 8. Bxd2 {[%emt 0:03:54]} Qe7 {[%emt 0:02:03]} 9. Qc2 {[%emt 0:09:00]} Nbd7 {[%emt 0:01:21]} 10. b3 {[%emt 0:02:39]} Ne4 {[%emt 0:03:05]} 11. Bc1 {[%emt 0:06:53]} e5 {[%emt 0:06:46]} 12. e3 {[%emt 0:09:56]} Ndf6 {[%emt 0:10:16]} (12... Rb8 $14 {feels stronger.}) 13. Bb2 {[%emt 0:05:43]} exd4 {[%emt 0:02:50]} 14. exd4 {[%emt 0:04:13]} ({Reject} 14. Bxd4 b6 $14) 14... Qf7 {[%emt 0:02:46]} 15. Nd2 {[%emt 0:09:15]} Nxd2 {[%emt 0:02:26]} 16. Qxd2 {[%emt 0:00:13]} d5 {[%emt 0:04:41]} 17. Qc2 {[%emt 0:07:27]} c6 {[%emt 0:03:56]} 18. Rae1 {[%emt 0:07:33]} Bd7 {[%emt 0:02:39]} 19. Re2 {[%emt 0:02:37]} Rfe8 {[%emt 0:00:59]} 20. Rfe1 {[%emt 0:00:56]} Rxe2 {[%emt 0:02:50]} 21. Rxe2 {[%emt 0:00:25]} Re8 {[%emt 0:01:12]} 22. cxd5 {[%emt 0:10:31]} Nxd5 $11 {[%emt 0:06:14]} 23. Re5 {[%emt 0:01:09]} Nf6 {[%emt 0:10:26]} 24. Qc5 {[%emt 0:03:18]} Ng4 {[%emt 0:02:07]} 25. Rxe8+ {[%emt 0:00:13]} Qxe8 {[%emt 0:00:58]} 26. Bf1 {[%emt 0:00:05]} b6 {[%emt 0:09:34]} 27. Qd6 {[%emt 0:00:43]} Be6 {[%emt 0:02:53]} 28. h3 {[%emt 0:02:06]} Nf6 {[%emt 0:01:03]} 29. Bg2 {[%emt 0:00:13]} Nd5 {[%emt 0:03:18]} 30. Qe5 {[%emt 0:00:07]} Qd7 {[%emt 0:04:55]} 31. Bf1 {[%emt 0:01:05]} h6 {[%emt 0:02:15]} 32. Bc4 {[%emt 0:00:17]} b5 {[%emt 0:01:45]} 33. Bf1 {[%emt 0:00:14]} Nb4 {[%emt 0:03:18]} 34. a3 {[%emt 0:00:15]} Nd5 {[%emt 0:00:25]} 35. Bd3 {[%emt 0:00:22]} Ne7 {[%emt 0:00:45]} 36. Bc2 {[%emt 0:01:02]} Ng6 {[%emt 0:01:58]} 37. Qc5 {[%emt 0:01:10]} Bd5 {[%emt 0:01:06]} 38. Bc1 {[%emt 0:00:44]} Qe6 {[%emt 0:01:29]} 39. Qc3 {[%emt 0:00:36]} Ne7 {[%emt 0:02:26]} 40. Bf4 {[%emt 0:02:15]} Ng6 {[%emt 0:00:36]} 41. Bd2 {[%emt 0:06:11]} Ne7 {[%emt 0:04:17]} 42. Qd3 {[%emt 0:06:23]} Kf7 {[%emt 0:05:47]} 43. b4 {[%emt 0:02:25]} Be4 {[%emt 0:05:36]} 44. Qb3 {[%emt 0:02:02]} Bxc2 {[%emt 0:04:06]} 45. Qxc2 {[%emt 0:00:09]} Nd5 {[%emt 0:01:52]} 46. Qd3 {[%emt 0:02:27]} Nb6 {[%emt 0:03:13]} 47. Bf4 {[%emt 0:06:17]} Qe1+ {[%emt 0:02:20]} 48. Kg2 {[%emt 0:00:32]} Qe4+ {[%emt 0:01:31]} 49. Qxe4 {[%emt 0:00:08]} fxe4 {[%emt 0:00:04]} 50. f3 {[%emt 0:00:34]} exf3+ {[%emt 0:00:28]} 51. Kxf3 {[%emt 0:00:04]} Nc4 {[%emt 0:00:25]} 52. Bc1 {[%emt 0:00:16]} Ke6 {[%emt 0:00:30]} 53. Ke4 {[%emt 0:00:19]} Nd6+ {[%emt 0:01:36]} 54. Kd3 {[%emt 0:00:57]} Kd5 {[%emt 0:00:59]} 55. Be3 {[%emt 0:02:57]} Nf5 {[%emt 0:02:08]} 56. Bf2 {[%emt 0:00:09]} g6 {[%emt 0:00:59]} 57. g4 {[%emt 0:01:41]} Nd6 {[%emt 0:00:16]} 58. Be3 {[%emt 0:01:49]} h5 {[%emt 0:00:59]} 59. Bf4 {[%emt 0:01:32]} Nc4 {[%emt 0:01:10]} 60. Bc1 {[%emt 0:00:07]} hxg4 {[%emt 0:00:58]} 61. hxg4 {[%emt 0:00:05]} a6 {[%emt 0:00:17]} 62. g5 {[%emt 0:00:57]} Kd6 {[%emt 0:00:42]} 63. Ke4 {[%emt 0:00:38]} Ke6 {[%emt 0:00:13]} 64. Be3 {[%emt 0:00:30]} Nd6+ {[%emt 0:00:30]} 65. Kd3 {[%emt 0:01:30]} Kf5 {[%emt 0:00:18]} 66. Bd2 {[%emt 0:00:30]} Nf7 {[%emt 0:00:26]} 67. d5 {[%emt 0:01:41]} cxd5 {[%emt 0:00:34]} 68. Kd4 {[%emt 0:00:13]} Ke6 {[%emt 0:01:06]} 69. Kc5 {[%emt 0:00:13]} Nd6 {[%emt 0:00:50]} 70. Bc1 {[%emt 0:01:31]} Nc4 {[%emt 0:01:23]} 71. Kd4 {[%emt 0:00:20]} Ne5 {[%emt 0:00:35]} 72. Bf4 {[%emt 0:00:23]} Nf3+ {[%emt 0:00:41]} 73. Ke3 {[%emt 0:00:39]} Nh4 {[%emt 0:00:12]} 74. Kd4 {[%emt 0:00:10]} Nf5+ {[%emt 0:00:27]} 75. Kc5 {[%emt 0:00:40]} d4 {[%emt 0:00:23]} 76. Kb6 {[%emt 0:00:12]} Kd5 {[%emt 0:00:54]} 77. Kxa6 {[%emt 0:00:30]} Kc4 {[%emt 0:00:55]} 78. Kb6 {[%emt 0:01:23]} d3 {[%emt 0:00:16]} 79. Kc6 {[%emt 0:00:29]} Nd4+ {[%emt 0:00:31]} 80. Kd6 {[%emt 0:00:34]} Nc2 {[%emt 0:00:41]} 81. Ke6 {[%emt 0:00:42]} Kd4 {[%emt 0:00:44]} 82. Kf6 {[%emt 0:00:11]} Ne3 {[%emt 0:00:09]} 83. Kxg6 {[%emt 0:00:53]} d2 {[%emt 0:00:13]} 0-1

[Event "GER-chT States Women 2022"]
[Site "Braunfels"]
[Date "2022.06.17"]
[Round "2.21"]
[White "Lowke, Kathrin"]
[Black "Grining, Maria"]
[Result "1-0"]
[ECO "B07"]
[WhiteElo "1850"]
[BlackElo "1759"]
[Annotator "NA RC"]
[PlyCount "59"]
[EventDate "2022.06.15"]
[EventType "swiss"]
[EventCountry "GER"]
[SourceTitle "playchess.com"]
[Source "ChessBase"]
[SourceQuality "1"]
[TimeControl "40/5400+30:1800+30"]

1. e4 {[%emt 0:00:05]} d6 {[%emt 0:00:03]} 2. d4 {[%emt 0:01:00]} Nf6 {[%emt 0:00:15]} 3. Nc3 {[%emt 0:00:32]} Nbd7 {[%emt 0:00:26]} 4. Nf3 {[%emt 0:02:36]} e5 {[%emt 0:00:28]} 5. Bc4 {[%emt 0:02:17]} h6 {[%emt 0:01:08]} 6. h3 {[%emt 0:03:48]} c6 {[%emt 0:01:42]} 7. Bb3 {[%emt 0:00:20]} Be7 {[%emt 0:01:11]} 8. Be3 {[%emt 0:00:38]} Qc7 {[%emt 0:00:44]} 9. Qd2 {[%emt 0:04:35]} Nf8 {[%emt 0:04:28]} 10. O-O-O {[%emt 0:04:49]} b5 {[%emt 0:02:59]} 11. a3 {[%emt 0:06:21]} a5 {[%emt 0:01:52]} 12. dxe5 {[%emt 0:08:28]} dxe5 {[%emt 0:00:51]} 13. Nxe5 {[%emt 0:05:23]} Qxe5 {[%emt 0:03:56]} 14. Bf4 {[%emt 0:00:27]} Qc5 {[%emt 0:17:44]} 15. Be3 {[%emt 0:00:37]} Qh5 {[%emt 0:02:35]} 16. g4 {[%emt 0:00:18]} Qg6 {[%emt 0:01:46] [#]} 17. Bc5 $11 {[%emt 0:01:54]} N6d7 {[%emt 0:12:17]} 18. Bxe7 {[%emt 0:02:25]} Kxe7 {[%emt 0:00:06]} 19. e5 {[%emt 0:01:36]} Kd8 {[%emt 0:11:39]} 20. f4 {[%emt 0:04:42]} b4 {[%emt 0:07:07]} 21. Na4 {[%emt 0:05:33]} Kc7 {[%emt 0:03:26]} 22. Kb1 {[%emt 0:02:18]} c5 {[%emt 0:04:54]} 23. f5 {[%emt 0:00:53]} Qc6 {[%emt 0:03:36]} 24. Bd5 {[%emt 0:15:14]} Qxa4 {[%emt 0:00:35]} 25. Bxa8 {[%emt 0:00:04]} bxa3 {[%emt 0:02:39]} 26. Qd6+ {[%emt 0:01:06]} Kd8 {[%emt 0:00:16]} 27. e6 {[%emt 0:00:49]} Qb4 {[%emt 0:03:23]} 28. e7+ {[%emt 0:02:10]} Ke8 {[%emt 0:00:08]} 29. exf8=Q+ {[%emt 0:00:19]} Rxf8 {[%emt 0:00:09]} 30. Rhe1+ {[%emt 0:00:08]} 1-0